Cogmind - Beta 15 *** ADVENTURER MODE // 2025.07.07 @ 01:11:18 Player: Ilppis Result: Destroyed by Y-54 Guardian with Gatling Laser Performance ------------- Evolutions (3) 1500 Regions Visited (5) 1000 Robots Destroyed (65) 325 Value Destroyed (2089) 2089 Prototype IDs (5) 100 Alien Tech Used (0) 0 Bonus (11) 11 TOTAL SCORE: 5025 Bonus ------- High Alert Combat Kills 11 Cogmind --------- Core Integrity 0/700 Matter 300/300 Energy 100/100 System Corruption 3% Temperature Cool (6) Movement Core (350) Ox6 Location -7/Factory Parts ------- > --- POWER (2) -------- (None) > --- PROPULSION (4) --- (None) > --- UTILITY (4) ------ Large Storage Unit > --- WEAPON (3) ------- (None) > --- INVENTORY (15) --- Light Nuclear Core Improved Terrain Scan Processor Advanced ECM Suite Peak State ------------ > --- POWER ------------ Improved Deuterium Engine Improved Deuterium Engine > --- PROPULSION ------- Aluminum Leg Carbon-fiber Leg Improved Carbon-fiber Leg Improved Carbon-fiber Leg > --- UTILITY ---------- Large Storage Unit Transmission Jammer Recalibrator > --- WEAPON ----------- Precision Shock Rifle Improved EM Pulse Cannon Advanced Assault Cannon > --- INVENTORY -------- Light Ion Engine Light Nuclear Core Improved Terrain Scan Processor Advanced ECM Suite Light Armor Plating Particle Gun Light Assault Rifle Greatsword [Rating: 44] Favorites ----------- Power Reinforced Ion Engine Engine Reinforced Ion Engine Power Core Nuclear Core Propulsion Aluminum Leg Leg Aluminum Leg Wheel Wheel Utility Large Storage Unit Device Recalibrator Storage Large Storage Unit Processor Targeting Computer Hackware Hacking Suite Protection Light Armor Plating Weapon Light Assault Rifle Energy Gun Precision Shock Rifle Energy Cannon EM Pulse Cannon Ballistic Gun Light Assault Rifle Ballistic Cannon Advanced Assault Cannon Launcher Improved Grenade Launcher Slashing Weapon Greatsword Build | -11 -10 -9 -9 -8 -7 ------- Run | Yrd Mat Mat Min Mat Fac Slots Evolved 6 | . . 2 . 2 2 Power 1 | . . . . 1 . Propulsion 2 | . . 1 . . 1 Utility 2 | . . 1 . 1 . Weapon 1 | . . . . . 1 Parts Attached 51 | 6 1 7 4 9 24 Power 9 | 1 . 1 . 3 4 Engine 6 | 1 . 1 . 1 3 Core 3 | . . . . 2 1 Reactor . | . . . . . . Propulsion 17 | 2 . 3 2 3 7 Treads . | . . . . . . Leg 15 | 2 . 3 2 3 5 Wheel 2 | . . . . . 2 Hover . | . . . . . . Flight . | . . . . . . Utility 10 | 1 1 2 1 2 3 Device 4 | . 1 . 1 . 2 Storage 3 | 1 . . . 1 1 Processor 1 | . . 1 . . . Hackware 1 | . . . . 1 . Protection 1 | . . 1 . . . Artifact . | . . . . . . Weapon 15 | 2 . 1 1 1 10 Energy Gun 4 | . . . . . 4 Energy Cannon 2 | . . . . 1 1 Ballistic Gun 5 | 2 . 1 1 . 1 Ballistic Cannon 1 | . . . . . 1 Launcher 2 | . . . . . 2 Special Weapon . | . . . . . . Impact Weapon . | . . . . . . Slashing Weapon 1 | . . . . . 1 Piercing Weapon . | . . . . . . Special Melee Weapon . | . . . . . . Unidentified Prototypes 3 | . . . 1 . 2 Parts Lost 25 | . . . . 1 24 Power 7 | . . . . 1 6 Propulsion 9 | . . . . . 9 Utility 4 | . . . . . 4 Weapon 5 | . . . . . 5 Highest Loss Streak 9 | . . . . 1 9 To Critical Strikes . | . . . . . . Average Backups 6 | . 2 4 7 7 6 Power 1 | . 1 2 2 1 . Propulsion 1 | . . . 2 2 . Utility 2 | . . . 1 2 2 Weapon 1 | . 1 1 1 2 2 Tool/Special . | . . . . . . Unused Backups 5 | . . 1 1 1 2 Power 1 | . . 1 . . . Propulsion . | . . . . . . Utility 3 | . . . 1 . 2 Weapon 1 | . . . . 1 . Tool/Special . | . . . . . . Average Slot Usage (%) 85 | . 98 88 88 86 83 Engine 8 | . 14 11 11 9 6 Core 3 | . . . . 5 5 Leg 26 | . 28 27 33 27 23 Wheel 1 | . . . . . 1 Device 13 | . 12 6 10 9 16 Storage 8 | . 14 11 11 9 7 Hackware 1 | . . . . 8 . Energy Gun 2 | . . . . . 3 Energy Cannon 1 | . . . . 4 2 Ballistic Gun 12 | . 28 22 22 13 6 Launcher 2 | . . . . . 3 Peak Build Rating 44 | 6 7 12 23 34 44 Average Rating 25 | 4 6 9 22 30 30 On Entrance 13 | . 6 7 12 23 31 Naked Turns . | . . . . . . Heaviest Build 75 | 13 14 24 28 70 75 Greatest Support 61 | 20 20 30 30 35 61 Greatest Overweight (x) 11 | . . . . 1 11 Average Overweight (x) . | . . . . . . Largest Inventory Capacity 20 | 8 8 8 8 20 20 Average Capacity 12 | 6 8 8 8 13 15 Most Carried 11 | 2 2 8 8 9 11 Average Carried 6 | . 2 4 7 7 6 Final Capacity 20 | 8 8 8 8 20 15 Final Carried 9 | 2 2 8 8 9 3 Class Distribution -------------------- 35% | Scavenger-Mutant 22% | Mutant 20% | Scavenger-Skirmisher 11% | Scavenger-Gunner 5% | Infiltrator-Skirmisher 3% | Gunner Dominant Class ---------------- Mutant | -10/Materials Mutant | -9/Materials Scavenger-Mutant | -9/Mines Scavenger-Mutant | -8/Materials Scavenger-Skirmisher | -7/Factory Resources | -11 -10 -9 -9 -8 -7 ----------- Run | Yrd Mat Mat Min Mat Fac Matter Collected 1648 | 248 55 130 148 199 868 Remotely . | . . . . . . Salvage Created 2038 | . 161 347 205 261 1064 Parts 124 | . 11 28 17 15 53 Haulers Intercepted . | . . . . . . Recyclers Shooed 2 | . . 1 . . 1 Parts Field Recycled . | . . . . . . Retrieved Matter . | . . . . . . Parts Self-Destructed . | . . . . . . Prevented . | . . . . . . Kills | -11 -10 -9 -9 -8 -7 ------- Run | Yrd Mat Mat Min Mat Fac Combat Hostiles Destroyed 47 | . 5 6 8 6 22 Guns 32 | . 5 6 8 6 7 Cannons 7 | . . . . . 7 AOE 8 | . . . . . 8 Classes Destroyed 13 | . 3 4 . 1 5 Worker 3 | . . . . . 3 Builder 4 | . . 1 . . 3 Tunneler 1 | . . 1 . . . Recycler 3 | . . . . . 3 Mechanic 1 | . . . . . 1 Operator 2 | . . . . 2 . Watcher 4 | . 1 1 . . 2 Swarmer 15 | . 3 . 4 2 6 Grunt 23 | . 2 4 4 4 9 Brawler 2 | . . 1 . . 1 Duelist 1 | . . . . . 1 Sentry 3 | . . 1 . . 2 Programmer 3 | . . . . . 3 Best Kill Streak 8 | . 4 3 4 2 8 Combat Bots Only 6 | . 4 2 4 2 6 Max Kills in Single Turn 3 | . 1 1 1 1 3 Gunslinging . | . . . . . . Exploded 2 | . . . . . 2 Melee . | . . . . . . Uniques/NPCs Destroyed . | . . . . . . Combat | -11 -10 -9 -9 -8 -7 -------- Run | Yrd Mat Mat Min Mat Fac Hostile Shots Fired 646 | . 9 23 27 44 543 Missed 253 | . 3 10 6 15 219 Hits 393 | . 6 13 21 29 324 Melee 4 | . . 2 . . 2 Projectile 389 | . 6 11 21 29 322 AOE 1 | . . . . . 1 Critical Strikes 3 | . . 1 . 1 1 Part Disruptions 4 | . . . . . 4 Damage Taken 3854 | . 74 172 168 487 2953 Core 818 | . . 52 21 44 701 Absorbed by Shields . | . . . . . . Ignored by Resistances 1182 | . 21 50 48 141 922 Core Remaining (%) 93 | 100 100 . 81 92 . Volleys Fired 164 | . 6 23 23 24 88 Largest 3 | . 2 2 2 2 3 Hottest 189 | . 40 43 43 83 189 Shots Fired 327 | . 12 46 46 48 175 Gun 260 | . 12 46 46 44 112 Cannon 53 | . . . . 4 49 Launcher 14 | . . . . . 14 Special . | . . . . . . Kinetic 265 | . 12 46 46 44 117 Thermal 4 | . . . . . 4 Explosive 14 | . . . . . 14 Electromagnetic 44 | . . . . 4 40 Robot Hit Streak 26 | . 3 16 26 8 25 Robot Miss Streak 4 | . 1 3 2 2 4 Penetration Max . | . . . . . . Secondary Targets 2 | . 1 . . 1 . Max Gunslinging Chain 1 | . 1 . . 1 . Shots Hit Robots 244 | . 7 32 39 31 135 Core Hits 125 | . 6 16 14 16 73 Critical Kills 2 | . 1 . . 1 . Critical Parts Destroyed . | . . . . . . Critical Strikes 4 | . 1 . . 2 1 Destroy 2 | . 1 . . 1 . Blast 1 | . . . . . 1 Corrupt 1 | . . . . 1 . Melee Attacks 3 | . . . . . 3 Impact . | . . . . . . Slashing 3 | . . . . . 3 Piercing . | . . . . . . Sneak Attacks 2 | . . . . . 2 Combat Hostiles . | . . . . . . Follow-up Attacks . | . . . . . . Damage Inflicted 4844 | . 85 397 483 389 3490 Guns 2192 | . 85 393 464 324 926 Cannons 1047 | . . . . 65 982 Explosions 1295 | . . . . . 1295 Melee 283 | . . . . . 283 Ramming 27 | . . 4 19 . 4 Kinetic 2585 | . 85 393 464 324 1319 Thermal 150 | . . . . . 150 Explosive 1199 | . . . . . 1199 Electromagnetic 600 | . . . . 65 535 Impact . | . . . . . . Slashing 283 | . . . . . 283 Piercing . | . . . . . . Highest Corruption 3 | . 1 . . . 3 Average Corruption 2 | . 1 . . . 2 Corruption Purged . | . . . . . . Corruption Blocked . | . . . . . . Effects 16 | . 1 . . . 15 Message Errors 7 | . . . . . 7 Matter Fused 3 | . 1 . . . 2 Energy Discharges 3 | . . . . . 3 Data Loss (minor) 1 | . . . . . 1 Misfires 2 | . . . . . 2 Overload Shots . | . . . . . . Overflow Damage 198 | . . . . 1 197 Projectiles 15 | . . . . 1 14 Explosions 83 | . . . . . 83 Melee 100 | . . . . . 100 Knockbacks 6 | . . . . . 6 Impact . | . . . . . . Kinetic 6 | . . . . . 6 Secondary . | . . . . . . Self-Inflicted Damage 235 | . . . . . 235 Shots 5 | . . . . . 5 Rammed 4 | . . . . . 4 Targets Rammed 7 | . . 1 2 . 4 Kicked 3 | . . 1 2 . . Crushed . | . . . . . . Highest Temperature 400 | . . 6 20 126 400 Average Temperature 77 | . . 4 6 39 98 Received Heat Transfer 1194 | . 9 72 78 198 837 Effects 6 | . . . . . 6 Energy Bleed 1 | . . . . . 1 Interference 2 | . . . . . 2 Damage (major) 3 | . . . . . 3 Siege Activations . | . . . . . . Martial Activations . | . . . . . . Shielding Activations . | . . . . . . Robots Disrupted . | . . . . . . Combat Hostiles . | . . . . . . Robots Corrupted . | . . . . . . Combat Hostiles . | . . . . . . Parts Fried 4 | . . . . 2 2 Impact Corruptions . | . . . . . . Robots Melted . | . . . . . . Combat Hostiles . | . . . . . . Parts Melted . | . . . . . . Heat Transferred 211 | . . . . . 211 Parts Sabotaged . | . . . . . . Parts Stolen . | . . . . . . Parts Stripped . | . . . . . . Power Chain Reactions 1 | . . . . . 1 Alert | -11 -10 -9 -9 -8 -7 ------- Run | Yrd Mat Mat Min Mat Fac Maximum Alert Level 2 | . . . . . 2 Low Security (%) 81 | 100 100 100 100 100 67 Level 1 17 | . . . . . 30 Level 2 1 | . . . . . 1 Level 3 . | . . . . . . Level 4 . | . . . . . . Level 5 . | . . . . . . High Security . | . . . . . . Max Security . | . . . . . . Peak Influence 410 | . 100 74 90 99 410 Initial 32 | . . 32 24 . . Average 85 | . 22 31 29 38 125 Influence Increases 1643 | . 137 182 180 159 985 Destroy 0b10 Robot/C 940 | . 100 120 160 120 440 Destroy 0b10 Robot/NC 90 | . 5 15 . 10 60 Destroy Leader 198 | . 22 32 20 20 104 Successful Hack 10 | . 10 . . . . Disable Machine 90 | . . . . 9 81 Anti-Garrison Action 150 | . . . . . 150 Destroy Structure 135 | . . . . . 135 Lose Combat Pursuer 30 | . . 15 . . 15 Influence Decreases 1618 | . 47 198 254 159 960 Entered New Map 108 | . . 58 50 . . Time Decay 1290 | . 47 140 204 149 750 Lost Part 220 | . . . . 10 210 Squads Dispatched 16 | . . 2 . 4 10 Investigation 1 | . . . . 1 . Extermination 4 | . . . . . 4 Reinforcement 5 | . . 2 . . 3 Assault 1 | . . . . . 1 Garrison 5 | . . . . 3 2 Intercept . | . . . . . . Searches Triggered . | . . . . . . Construction Impeded . | . . . . . . Haulers Reinforced . | . . . . . . Active Scanning Responses . | . . . . . . Cargo Convoy Interrupts . | . . . . . . Stealth | -11 -10 -9 -9 -8 -7 --------- Run | Yrd Mat Mat Min Mat Fac Distress Signals 3 | . . 2 . . 1 Communications Jammed . | . . . . . . Distress Signals . | . . . . . . Times Spotted 88 | . 7 12 20 10 39 Peak Tracking Total 16 | . 3 7 16 3 4 Tactical Retreats 3 | . . 1 1 . 1 Traps | -11 -10 -9 -9 -8 -7 ------- Run | Yrd Mat Mat Min Mat Fac Traps Triggered 8 | . 2 . . . 6 Indirectly . | . . . . . . Trap Hack Attempts . | . . . . . . Triggered . | . . . . . . Disarmed . | . . . . . . Reprogrammed . | . . . . . . Reused . | . . . . . . Traps Extracted . | . . . . . . Installed . | . . . . . . Triggered . | . . . . . . Machines | -11 -10 -9 -9 -8 -7 ---------- Run | Yrd Mat Mat Min Mat Fac Machines Disabled 11 | . . . . 1 10 Max in Single Turn 4 | . . . . 1 4 Garrison Access 1 | . . . . . 1 Machines Repaired . | . . . . . . Machines Dismantled . | . . . . . . Machines Sabotaged . | . . . . . . Overloaded Fab Kills . | . . . . . . Hacking | -11 -10 -9 -9 -8 -7 --------- Run | Yrd Mat Mat Min Mat Fac Machines Accessed 8 | . 1 . 1 2 4 Terminals 7 | . 1 . . 2 4 Fabricators . | . . . . . . Repair Stations . | . . . . . . Recycling Units . | . . . . . . Scanalyzers . | . . . . . . Garrison Access . | . . . . . . Total Hacks 24 | . 2 . 1 6 15 Successful 16 | . 1 . 1 5 9 Failed 8 | . 1 . . 1 6 Catastrophic . | . . . . . . Database Lockouts . | . . . . . . Manual . | . . . . . . Terminals 23 | . 2 . . 6 15 Fabricators . | . . . . . . Repair Stations . | . . . . . . Recycling Units . | . . . . . . Scanalyzers . | . . . . . . Garrison Access . | . . . . . . Terminal Hacks 16 | . 1 . 1 5 9 Record 9 | . 1 . . 4 4 Part Schematic 1 | . . . . . 1 Prototype ID Bank 1 | . . . . . 1 Open Door 1 | . . . 1 . . Emergency Access Points 1 | . . . . . 1 Dispatch Records 1 | . . . . . 1 Hauler Manifests 1 | . . . . . 1 Zone Layout 1 | . . . . 1 . Fabricator Hacks . | . . . . . . Repair Station Hacks . | . . . . . . Recycling Unit Hacks . | . . . . . . Scanalyzer . | . . . . . . Garrison Access Hacks . | . . . . . . Unauthorized Hacks . | . . . . . . Terminals . | . . . . . . Fabricators . | . . . . . . Repair Stations . | . . . . . . Recycling Units . | . . . . . . Scanalyzers . | . . . . . . Garrison Access . | . . . . . . Data Cores Recovered 2 | . . . . 2 . Used 1 | . . . . 1 . Hacking Detections 7 | . 1 . . 2 4 Full Trace Events 1 | . . . . 1 . Feedback Events . | . . . . . . Feedback Blocked . | . . . . . . Robot Schematics Acquired . | . . . . . . Robots Built . | . . . . . . Authchips . | . . . . . . Time . | . . . . . . Total Robot Build Rating . | . . . . . . Part Schematics Acquired 1 | . . . . . 1 Parts Built . | . . . . . . Authchips . | . . . . . . Time . | . . . . . . Total Part Build Rating . | . . . . . . Parts Repaired . | . . . . . . Time . | . . . . . . Parts Recycled . | . . . . . . Recycled Matter . | . . . . . . Retrieved Matter . | . . . . . . Retrieved Components . | . . . . . . Parts Scanalyzed . | . . . . . . Part Schematics Acquired . | . . . . . . Parts Damaged . | . . . . . . Bothacking | -11 -10 -9 -9 -8 -7 ------------ Run | Yrd Mat Mat Min Mat Fac Used RIF Installer . | . . . . . . Robots Hacked . | . . . . . . Non-combat . | . . . . . . Combat . | . . . . . . Robot Hacks Applied . | . . . . . . Relay Couplers Released . | . . . . . . Fabnet Peak Effective % . | . . . . . . Robots Rewired . | . . . . . . Allies Hacked . | . . . . . . Hacks Repelled . | . . . . . . Allies | -11 -10 -9 -9 -8 -7 -------- Run | Yrd Mat Mat Min Mat Fac Total Allies . | . . . . . . Largest Group . | . . . . . . Highest-Rated Group . | . . . . . . Highest-Rated Ally . | . . . . . . Total Orders . | . . . . . . Ally Attacks 15 | . . . . 4 11 Total Damage . | . . . . . . Kills . | . . . . . . Allies Corrupted . | . . . . . . Allies Melted . | . . . . . . Intel | -11 -10 -9 -9 -8 -7 ------- Run | Yrd Mat Mat Min Mat Fac Active Infowar (turns) 1373 | . 192 163 . . 1018 Structural 1255 | . 192 163 . . 900 Jamming 131 | . . . . . 131 Robot Analysis Total . | . . . . . . Derelict Logs Recovered . | . . . . . . Drone Launches 17 | . . . . 13 4 Drone Recoveries 1 | . . . . . 1 Exploration | -11 -10 -9 -9 -8 -7 ------------- Run | Yrd Mat Mat Min Mat Fac Turns Passed 3340 | 51 201 299 470 396 1923 Spaces Moved 1857 | 35 153 180 327 201 961 Core 35 | 2 . . . . 33 Treads . | . . . . . . Legs 1816 | 33 153 180 327 201 922 Wheels 6 | . . . . . 6 Hover . | . . . . . . Flight . | . . . . . . Fastest Speed 50 | 50 120 120 120 120 105 Average Speed 145 | 116 120 120 120 150 163 Slowest Speed 600 | 120 120 120 120 190 600 Overloaded Moves . | . . . . . . Propulsion Burnouts . | . . . . . . Robots Hopped . | . . . . . . Potential Cave-ins . | . . . . . . Cave-ins Triggered . | . . . . . . Exploration Rate (%) 24 | 4 34 23 39 21 28 Regions Visited 5 Branch Regions 1 Pre-discovered Areas . | . . . . . . Known Exits Taken . | . . . . . . Unknown Exits Taken 5 | 1 1 1 1 1 . Scrap Searched . | . . . . . . Spaces Dug . | . . . . . . Terrain Destroyed 151 | . . . . . 151 Melee . | . . . . . . Projectile 2 | . . . . . 2 AOE 149 | . . . . . 149 Terrain Rammed . | . . . . . . Walls Destroyed . | . . . . . . Machines Disabled . | . . . . . . Actions | -11 -10 -9 -9 -8 -7 --------- Run | Yrd Mat Mat Min Mat Fac Total 2188 | 43 159 219 368 251 1148 Wait 26 | . . . . 1 25 Move 1852 | 34 152 179 326 200 961 Hop . | . . . . . . Pick Up 29 | 3 . 6 5 6 9 Fast Attach 21 | 5 1 2 . . 13 Attach 26 | 1 . 1 1 4 19 Detach 7 | . . 1 . 1 5 Swap 27 | . . 4 3 8 12 Drop 26 | . . 2 8 7 9 Fire 164 | . 6 23 23 24 88 Melee 3 | . . . . . 3 Ram 4 | . . . . . 4 Kick 3 | . . 1 2 . . Crush . | . . . . . . Escape Stasis . | . . . . . . Rewire . | . . . . . . Trap . | . . . . . . Miscellaneous . | . . . . . . Route ------- -11/Scrapyard -10/Materials (discovered 2 exits: [*Mat x2]) -9/Materials -9/Mines -8/Materials -7/Factory History --------- Turn | Location | Event 22 | -11/Scrapyard | Discovered new exit (range 16) 52 | -11/Scrapyard | Entered Materials 113 | -10/Materials | Discovered new exit (range 6) 196 | -10/Materials | Discovered new exit (range 13) 253 | -10/Materials | Entered another Materials area 253 | -9/Materials | Evolved 2 slots: Propulsion x1, Utility x1 310 | -9/Materials | Build established: Mutant 508 | -9/Materials | Discovered new exit (range 14) 552 | -9/Materials | Entered Mines 563 | -9/Mines | Found the Drone Emporium 569 | -9/Mines | Found Prototype Device 571 | -9/Mines | Identified Bomb Drone Bay 701 | -9/Mines | Build established: Scavenger-Mutant 714 | -9/Mines | Assembled infested the area 719 | -9/Mines | Assisted by a Guerilla fighting off Assembled 953 | -9/Mines | Discovered new exit (range 11) 1022 | -9/Mines | Entered Materials 1022 | -8/Materials | Evolved 2 slots: Power x1, Utility x1 1118 | -8/Materials | Garrison activated, responded to threat 1372 | -8/Materials | Discovered new exit (range 17) 1403 | -8/Materials | Lost 5 allies 1418 | -8/Materials | Entered Factory 1418 | -7/Factory | Accompanied by 8 allies 1418 | -7/Factory | Evolved 2 slots: Propulsion x1, Weapon x1 1648 | -7/Factory | Lost 10 allies 1726 | -7/Factory | Build established: Scavenger-Gunner 2101 | -7/Factory | Build established: Scavenger-Skirmisher 2221 | -7/Factory | Lost 3 parts (1p1n1w) 2449 | -7/Factory | Garrison activated, responded to threat 2882 | -7/Factory | Lost 3 parts (1p1n1w) 3227 | -7/Factory | Core integrity fell below 50% 3247 | -7/Factory | Lost 9 parts (2p3n2u2w) 3297 | -7/Factory | Core integrity fell below 20% 3341 | -7/Factory | Destroyed by Y-54 Guardian with Gatling Laser Last Messages --------------- 03203_ K-01 Serf collects debris. 03216_ Imp. Carbon-fiber Leg destroyed. 03228_ O-24 Administrator: "IFF HANDSHAKE FAILED. SECURING TERMINAL." 03230_ ALERT: Hostiles spotted, dispatching reinforcements to Terminal F011. 03255_ OPY=JPCE4 #GC2 03273_ Slammed into Y-54 Guardian. 03273_ U-05 Engineer lays Concrete. 03274_ Transmission Jammer destroyed. 03274_ U-05 Engineer lays Concrete. 03276_ Slammed into Y-54 Guardian. 03277_ U-05 Engineer lays Concrete. 03280_ Slammed into Y-54 Guardian. 03281_ U-05 Engineer lays Concrete. 03283_ Slammed into Y-54 Guardian. 03284_ U-05 Engineer lays Concrete. Map ----- +----------------------------------------------------+ | ???????????????????????????????????????????# # | | ???????????????????????????????????????????# # | | ???????????????????????????????????????????# # | | ????????????????????????????????#########??# # | | ????????????????????????????????# #??# # | | ????????????????????????????????# #??# # | | ????????????????????????????????# #??# # | | ????????????????????????????????# #??# # | | ????????????????????????????????# #??# # | | ????????????????????????????????# #### # | | ????????????????????????????????# + # | | ????????????????????????????????# #### + | | ????????????????????????????????# #??# # | | ????????????????????????????????# #??# # | | ????????????????????????????????# #??# # | | ????????????????????????????????# #??# # | | ????????????????????????????????# #??# # | | ????????????????????????""??????# #??# # | | ?????????????#??????????""??????# #??# # | | ???????????? ????????""??????# #??? # | | ???????????? ?????? ??????# #??? # | | ??????????? #######+############+##### # | | ??????????? # | | ?????????? # | | ?????????? k # | | ?????????? @ # | | ?????????? # | | ?????????????########## ###+################## | | ??????????????????????# # #???????? | | ??????????????????????# # """"""""" #????????? | | ??????????????????????# # ??????????? | | ??????????????????????# # !! ?????????? | | ??????????????????????# # ] #????????? | | ??????????????????????# # = #????????? | | ??????????????????????# # #????????? | | ??????????????????????# ##############???????? | | ?????????????????????## k ??????? | | ?????????????????????# o ??????? | | ?????????????????????#T ??????? | | ?????????????????????## Y% ??????? | | ??????????????????????# % ??????? | | ????????????????????######+###############???????? | | ????????????????????# % #???????????????? | | ????????????????????#" #???????????????? | | ????????????????????#" #???????????????? | | ????????????????????#" #???????????????? | | ????????????????????#T #???????????????? | | ???????????????????#" #???????????????? | | ???????????????????#" #???????????????? | | ???????????????????#" #?????????????? # | +----------------------------------------------------+ Best States ------------- Heat Dissipation 34 Energy Generation 27 Energy Capacity 480 Matter Stores 300 Matter Capacity 300 Sight Range 16 Terrain Scan Density 10 Jamming Range 12 Armor Coverage 150 Resistance: KI 20 Resistance: TH 20 Resistance: EX 20 Resistance: EM 20 Resistance: I 20 Resistance: S 20 Resistance: P 20 Evasion (%) 55 Targeting Accuracy 5 Offensive Hacking 20 Item Schematics ----------------- Imp. Transmission Jammer | -7/Factory | Hacked Robot Schematics ------------------ None Fabricated ------------ Nothing Repaired ---------- Nothing Alien Tech Used ----------------- None Achievements -------------- Release The Drones! Challenges ------------ None Game ------ Seed GrapheneSalvagingBeam Manual? 0 Play Time 01:20:45 Cumulative 39.3 hours Start 2025.07.06 @ 23:44:20 End 2025.07.07 @ 01:11:18 Sessions 1 Manual Loads 0 Difficulty Adventurer Special Mode None Game No. 19 Rogue 2 Adventurer 17 Explorer 0 Win Type - Total 0 Types 0/0/0/0/0/0/0/0/0/0 Lore% 10 Gallery% 20 Achievement% 17 Wizard Run 0 Options --------- Layout 1 ASCII 0 Keyboard 0 Movement Mouse Keybinds 0 Fullscreen 1 Font 18/SmallcapsGlow Map View 50x40 Zoom Use 0% Tactical HUD 1 Map Filters NONE Filters NONE Steam 1 RUN: c103403a-d9e8-4069-9fd4-030d3e5652fb